[Event "Titled Tuesday Blitz September 27 Early 2022"]
[White "Csonka, Balazs"]
[Black "Wachinger, Guenther"]
[WhiteFideId "742910"]
[BlackFideId "4604261"]
[WhiteElo "2404"]
[BlackElo "2212"]
[Result "1-0"]
[Round "02"]
[TimeControl "180+1"]
[Date "2022.09.27"]
[WhiteClock "0:00:03"]
[BlackClock "0:00:03"]

1. d4 {[%clk 0:03:00]}  Nf6 {[%clk 0:02:58]} 2. c4 {[%clk 0:03:00]}  e6 {[%clk 0:02:58]} 3. Nc3 {[%clk 0:03:00]}  Bb4 {[%clk 0:02:58]} 4. f3 {[%clk 0:03:00]}  O-O {[%clk 0:02:56]} 5. a3 {[%clk 0:02:59]}  Bxc3+ {[%clk 0:02:39]} 6. bxc3 {[%clk 0:03:00]}  Ne8 {[%clk 0:02:40]} 7. e4 {[%clk 0:02:53]}  b6 {[%clk 0:02:34]} 8. Bd3 {[%clk 0:02:48]}  Nc6 {[%clk 0:02:32]} 9. f4 {[%clk 0:02:40]}  f5 {[%clk 0:01:56]} 10. e5 {[%clk 0:02:29]}  Ba6 {[%clk 0:01:56]} 11. Qe2 {[%clk 0:02:12]}  Na5 {[%clk 0:01:55]} 12. Rb1 {[%clk 0:02:08]}  c5 {[%clk 0:01:48]} 13. d5 {[%clk 0:01:21]}  Qe7 {[%clk 0:01:20]} 14. d6 {[%clk 0:01:08]}  Qd8 {[%clk 0:01:10]} 15. Nf3 {[%clk 0:01:04]}  g6 {[%clk 0:00:58]} 16. O-O {[%clk 0:00:53]}  Ng7 {[%clk 0:00:53]} 17. Be3 {[%clk 0:00:53]}  Bb7 {[%clk 0:00:48]} 18. Bf2 {[%clk 0:00:49]}  Qc8 {[%clk 0:00:39]} 19. Bh4 {[%clk 0:00:47]}  Nh5 {[%clk 0:00:38]} 20. Qe3 {[%clk 0:00:43]}  Ba6 {[%clk 0:00:34]} 21. Nd2 {[%clk 0:00:39]}  Rb8 {[%clk 0:00:31]} 22. Be2 {[%clk 0:00:38]}  Ng7 {[%clk 0:00:30]} 23. Rf3 {[%clk 0:00:31]}  Qc6 {[%clk 0:00:25]} 24. Rh3 {[%clk 0:00:28]}  b5 {[%clk 0:00:25]} 25. Be7 {[%clk 0:00:22]}  Nxc4 {[%clk 0:00:16]} 26. Bxc4 {[%clk 0:00:20]}  bxc4 {[%clk 0:00:16]} 27. Bxf8 {[%clk 0:00:19]}  Rxb1+ {[%clk 0:00:15]} 28. Nxb1 {[%clk 0:00:19]}  Bb7 {[%clk 0:00:15]} 29. Qg3 {[%clk 0:00:17]}  Qe4 {[%clk 0:00:10]} 30. Nd2 {[%clk 0:00:15]}  Qe2 {[%clk 0:00:10]} 31. Nf1 {[%clk 0:00:10]}  Nh5 {[%clk 0:00:09]} 32. Rxh5 {[%clk 0:00:09]}  Qxh5 {[%clk 0:00:08]} 33. Be7 {[%clk 0:00:08]}  Qe2 {[%clk 0:00:07]} 34. h4 {[%clk 0:00:08]}  Be4 {[%clk 0:00:06]} 35. Ne3 {[%clk 0:00:08]}  a5 {[%clk 0:00:03]} 36. Kh2 {[%clk 0:00:07]}  a4 {[%clk 0:00:03]} 37. Bd8 {[%clk 0:00:07]}  Qh5 {[%clk 0:00:03]} 38. Bb6 {[%clk 0:00:06]}  Qe2 {[%clk 0:00:03]} 39. Bxc5 {[%clk 0:00:06]}  Qa2 {[%clk 0:00:03]} 40. Bb4 {[%clk 0:00:06]}  Qe2 {[%clk 0:00:03]} 41. Ba5 {[%clk 0:00:05]}  Kf7 {[%clk 0:00:03]} 42. Bb6 {[%clk 0:00:04]}  h6 {[%clk 0:00:03]} 43. Kg1 {[%clk 0:00:03]}  Qb2 {[%clk 0:00:02]} 44. h5 {[%clk 0:00:02]}  gxh5 {[%clk 0:00:01]} 45. Bd8 {[%clk 0:00:03]}  Qb1+ {[%clk 0:00:01]} 46. Kh2 {[%clk 0:00:02]}  Qd3 {[%clk 0:00:02]} 47. Bf6 {[%clk 0:00:02]}  Qe2 {[%clk 0:00:02]} 48. Qg7+ {[%clk 0:00:03]}  Ke8 {[%clk 0:00:03]} 49. Qe7# {[%clk 0:00:03]} 1-0


[Site "https://www.chess.com"]

[Event "Titled Tuesday Blitz September 27 Early 2022"]
[White "D`Arruda, Ricardo D."]
[Black "Dilmukhametov, Artur"]
[WhiteFideId "100692"]
[BlackFideId "24179922"]
[WhiteElo "2473"]
[BlackElo "2206"]
[Result "1-0"]
[Round "02"]
[TimeControl "180+1"]
[Date "2022.09.27"]
[WhiteClock "0:02:02"]
[BlackClock "0:01:33"]

1. d4 {[%clk 0:03:00]}  Nf6 {[%clk 0:02:57]} 2. Nf3 {[%clk 0:03:00]}  g6 {[%clk 0:02:57]} 3. Nc3 {[%clk 0:03:00]}  Bg7 {[%clk 0:02:57]} 4. e4 {[%clk 0:03:00]}  d6 {[%clk 0:02:57]} 5. Bg5 {[%clk 0:02:59]}  O-O {[%clk 0:02:57]} 6. Qd2 {[%clk 0:02:59]}  Nbd7 {[%clk 0:02:56]} 7. O-O-O {[%clk 0:02:58]}  e5 {[%clk 0:02:52]} 8. dxe5 {[%clk 0:02:57]}  dxe5 {[%clk 0:02:51]} 9. Nxe5 {[%clk 0:02:54]}  Qe8 {[%clk 0:02:38]} 10. Nxd7 {[%clk 0:02:49]}  Nxd7 {[%clk 0:02:37]} 11. Bh6 {[%clk 0:02:37]}  Nc5 {[%clk 0:02:28]} 12. Bxg7 {[%clk 0:02:34]}  Nxe4 {[%clk 0:02:20]} 13. Nxe4 {[%clk 0:02:35]}  Kxg7 {[%clk 0:02:18]} 14. Qd4+ {[%clk 0:02:32]}  f6 {[%clk 0:02:10]} 15. Bc4 {[%clk 0:02:30]}  Bf5 {[%clk 0:02:09]} 16. Rhe1 {[%clk 0:02:23]}  Rd8 {[%clk 0:02:07]} 17. Qxd8 {[%clk 0:02:21]}  Qxd8 {[%clk 0:02:05]} 18. Rxd8 {[%clk 0:02:22]}  Rxd8 {[%clk 0:02:04]} 19. Ng3 {[%clk 0:02:22]}  Rd4 {[%clk 0:01:49]} 20. Nxf5+ {[%clk 0:02:20]}  gxf5 {[%clk 0:01:47]} 21. Re7+ {[%clk 0:02:21]}  Kg6 {[%clk 0:01:47]} 22. Rxc7 {[%clk 0:02:21]}  Re4 {[%clk 0:01:39]} 23. Kd2 {[%clk 0:02:19]}  Kg5 {[%clk 0:01:37]} 24. Rxh7 {[%clk 0:02:14]}  f4 {[%clk 0:01:36]} 25. Rxb7 {[%clk 0:02:04]}  Kg4 {[%clk 0:01:32]} 26. Be2+ {[%clk 0:02:03]}  Rxe2+ {[%clk 0:01:32]} 27. Kxe2 {[%clk 0:02:02]}  f3+ {[%clk 0:01:33]} 1-0


[Site "https://www.chess.com"]

[Event "Titled Tuesday Blitz September 27 Early 2022"]
[White "Danielyan, Vahe"]
[Black "Yanchenko, Roman"]
[WhiteFideId "13304828"]
[BlackFideId "4137329"]
[WhiteElo "2421"]
[BlackElo "2514"]
[Result "1/2-1/2"]
[Round "02"]
[TimeControl "180+1"]
[Date "2022.09.27"]
[WhiteClock "0:00:03"]
[BlackClock "0:00:16"]

1. e4 {[%clk 0:03:00]}  e6 {[%clk 0:03:00]} 2. d3 {[%clk 0:03:00]}  d5 {[%clk 0:03:01]} 3. Nd2 {[%clk 0:03:00]}  c5 {[%clk 0:03:01]} 4. Ngf3 {[%clk 0:03:01]}  Nc6 {[%clk 0:03:01]} 5. g3 {[%clk 0:03:01]}  Nf6 {[%clk 0:03:02]} 6. Bg2 {[%clk 0:03:00]}  dxe4 {[%clk 0:02:58]} 7. dxe4 {[%clk 0:03:00]}  Be7 {[%clk 0:02:58]} 8. O-O {[%clk 0:03:01]}  O-O {[%clk 0:02:59]} 9. c3 {[%clk 0:02:59]}  b6 {[%clk 0:02:56]} 10. Re1 {[%clk 0:02:59]}  Bb7 {[%clk 0:02:56]} 11. h4 {[%clk 0:02:58]}  Ng4 {[%clk 0:02:52]} 12. Qe2 {[%clk 0:02:57]}  Nce5 {[%clk 0:02:43]} 13. Nxe5 {[%clk 0:02:56]}  Nxe5 {[%clk 0:02:44]} 14. Nf3 {[%clk 0:02:53]}  Nd3 {[%clk 0:02:29]} 15. Rd1 {[%clk 0:02:52]}  Nxc1 {[%clk 0:02:30]} 16. Raxc1 {[%clk 0:02:51]}  Qc7 {[%clk 0:02:30]} 17. Qe3 {[%clk 0:02:36]}  Rad8 {[%clk 0:02:29]} 18. h5 {[%clk 0:02:34]}  h6 {[%clk 0:02:28]} 19. Bf1 {[%clk 0:02:29]}  Qc6 {[%clk 0:02:25]} 20. Re1 {[%clk 0:02:27]}  Bf6 {[%clk 0:02:21]} 21. Bg2 {[%clk 0:02:25]}  Qa4 {[%clk 0:02:20]} 22. a3 {[%clk 0:02:21]}  Qb5 {[%clk 0:02:19]} 23. b4 {[%clk 0:02:16]}  Rd3 {[%clk 0:01:59]} 24. Qe2 {[%clk 0:02:12]}  c4 {[%clk 0:01:59]} 25. e5 {[%clk 0:02:09]}  Bxf3 {[%clk 0:01:26]} 26. Bxf3 {[%clk 0:02:05]}  Bxe5 {[%clk 0:01:15]} 27. a4 {[%clk 0:02:01]}  Qxa4 {[%clk 0:01:11]} 28. Be4 {[%clk 0:02:02]}  Rxc3 {[%clk 0:01:10]} 29. Bc2 {[%clk 0:02:02]}  Rxc2 {[%clk 0:00:51]} 30. Rxc2 {[%clk 0:01:55]}  c3 {[%clk 0:00:49]} 31. Ra2 {[%clk 0:01:29]}  Qb3 {[%clk 0:00:49]} 32. Rxa7 {[%clk 0:01:30]}  Bd4 {[%clk 0:00:49]} 33. Rc7 {[%clk 0:01:25]}  e5 {[%clk 0:00:41]} 34. b5 {[%clk 0:01:16]}  Qe6 {[%clk 0:00:27]} 35. Kg2 {[%clk 0:01:02]}  Qd5+ {[%clk 0:00:26]} 36. Kh2 {[%clk 0:00:51]}  Ra8 {[%clk 0:00:23]} 37. Rd1 {[%clk 0:00:32]}  Qa2 {[%clk 0:00:17]} 38. Rc8+ {[%clk 0:00:28]}  Kh7 {[%clk 0:00:16]} 39. Qe4+ {[%clk 0:00:28]}  g6 {[%clk 0:00:17]} 40. hxg6+ {[%clk 0:00:28]}  Kg7 {[%clk 0:00:17]} 41. Rxa8 {[%clk 0:00:24]}  Qxf2+ {[%clk 0:00:17]} 42. Qg2 {[%clk 0:00:20]}  Qf6 {[%clk 0:00:16]} 43. gxf7 {[%clk 0:00:16]}  Qxf7 {[%clk 0:00:15]} 44. Rxd4 {[%clk 0:00:11]}  exd4 {[%clk 0:00:16]} 45. Rd8 {[%clk 0:00:07]}  Qh5+ {[%clk 0:00:16]} 46. Kg1 {[%clk 0:00:08]}  Qd1+ {[%clk 0:00:16]} 47. Kh2 {[%clk 0:00:06]}  Qh5+ {[%clk 0:00:16]} 48. Kg1 {[%clk 0:00:06]}  Qd1+ {[%clk 0:00:16]} 49. Kh2 {[%clk 0:00:03]}  Qh5+ {[%clk 0:00:16]} 1/2-1/2


[Site "https://www.chess.com"]

[Event "Titled Tuesday Blitz September 27 Early 2022"]
[White "Di Nicolantonio, Lucas"]
[Black "Milikow, Yoav"]
[WhiteFideId "680460"]
[BlackFideId "2822237"]
[WhiteElo "2381"]
[BlackElo "2341"]
[Result "0-1"]
[Round "02"]
[TimeControl "180+1"]
[Date "2022.09.27"]
[WhiteClock "0:00:02"]
[BlackClock "0:00:33"]

1. Nf3 {[%clk 0:03:00]}  d5 {[%clk 0:02:56]} 2. e3 {[%clk 0:03:00]}  g6 {[%clk 0:02:54]} 3. c4 {[%clk 0:02:59]}  c6 {[%clk 0:02:48]} 4. d4 {[%clk 0:02:58]}  Bg7 {[%clk 0:02:48]} 5. Nc3 {[%clk 0:02:58]}  e6 {[%clk 0:02:47]} 6. h4 {[%clk 0:02:47]}  h6 {[%clk 0:02:38]} 7. b3 {[%clk 0:02:45]}  Ne7 {[%clk 0:02:37]} 8. Bb2 {[%clk 0:02:42]}  b6 {[%clk 0:02:36]} 9. Qc2 {[%clk 0:02:35]}  Ba6 {[%clk 0:02:29]} 10. e4 {[%clk 0:02:04]}  Nd7 {[%clk 0:02:18]} 11. h5 {[%clk 0:01:58]}  g5 {[%clk 0:02:15]} 12. O-O-O {[%clk 0:01:19]}  Rc8 {[%clk 0:01:59]} 13. Kb1 {[%clk 0:01:18]}  Kf8 {[%clk 0:01:49]} 14. Be2 {[%clk 0:01:10]}  Kg8 {[%clk 0:01:48]} 15. e5 {[%clk 0:01:02]}  Qe8 {[%clk 0:01:19]} 16. cxd5 {[%clk 0:00:58]}  Bxe2 {[%clk 0:01:18]} 17. Qxe2 {[%clk 0:00:48]}  exd5 {[%clk 0:01:11]} 18. e6 {[%clk 0:00:39]}  Nf8 {[%clk 0:01:11]} 19. exf7+ {[%clk 0:00:32]}  Qxf7 {[%clk 0:01:12]} 20. Ne5 {[%clk 0:00:32]}  Bxe5 {[%clk 0:01:08]} 21. Qxe5 {[%clk 0:00:29]}  Qf5+ {[%clk 0:01:02]} 22. Qxf5 {[%clk 0:00:25]}  Nxf5 {[%clk 0:01:03]} 23. Rhe1 {[%clk 0:00:25]}  Kf7 {[%clk 0:01:01]} 24. Ba3 {[%clk 0:00:22]}  Ne6 {[%clk 0:00:59]} 25. g4 {[%clk 0:00:14]}  Nfxd4 {[%clk 0:00:51]} 26. Rxd4 {[%clk 0:00:08]}  Nxd4 {[%clk 0:00:51]} 27. Re7+ {[%clk 0:00:09]}  Kf6 {[%clk 0:00:50]} 28. Rd7 {[%clk 0:00:03]}  Rce8 {[%clk 0:00:46]} 29. Kc1 {[%clk 0:00:01]}  Re1+ {[%clk 0:00:39]} 30. Kd2 {[%clk 0:00:01]}  Rf1 {[%clk 0:00:38]} 31. Bb2 {[%clk 0:00:01]}  Rxf2+ {[%clk 0:00:37]} 32. Kc1 {[%clk 0:00:02]}  Re8 {[%clk 0:00:34]} 33. Ne2 {[%clk 0:00:02]}  Rf1+ {[%clk 0:00:33]} 34. Kd2 {[%clk 0:00:01]}  Rxe2+ {[%clk 0:00:33]} 35. Kd3 {[%clk 0:00:02]}  Rd1+ {[%clk 0:00:33]} 0-1


[Site "https://www.chess.com"]

[Event "Titled Tuesday Blitz September 27 Early 2022"]
[White "Dilanyan, Grigor"]
[Black "Tang, Andrew"]
[WhiteFideId "13303570"]
[BlackFideId "2059630"]
[WhiteElo "2264"]
[BlackElo "2584"]
[Result "0-1"]
[Round "02"]
[TimeControl "180+1"]
[Date "2022.09.27"]
[WhiteClock "0:00:03"]
[BlackClock "0:00:36"]

1. e4 {[%clk 0:02:45]}  e5 {[%clk 0:02:58]} 2. Nf3 {[%clk 0:02:43]}  Nc6 {[%clk 0:02:58]} 3. Nc3 {[%clk 0:02:43]}  Nf6 {[%clk 0:02:58]} 4. Bb5 {[%clk 0:02:31]}  Bb4 {[%clk 0:02:57]} 5. O-O {[%clk 0:02:27]}  O-O {[%clk 0:02:57]} 6. Bxc6 {[%clk 0:02:23]}  dxc6 {[%clk 0:02:57]} 7. d3 {[%clk 0:02:23]}  Nd7 {[%clk 0:02:57]} 8. Ne2 {[%clk 0:02:19]}  Re8 {[%clk 0:02:55]} 9. Kh1 {[%clk 0:02:14]}  Nf8 {[%clk 0:02:54]} 10. h3 {[%clk 0:02:10]}  Qf6 {[%clk 0:02:51]} 11. Nfg1 {[%clk 0:02:06]}  g5 {[%clk 0:02:33]} 12. Ng3 {[%clk 0:02:05]}  Ng6 {[%clk 0:02:33]} 13. Qh5 {[%clk 0:01:49]}  Nf4 {[%clk 0:02:30]} 14. Bxf4 {[%clk 0:01:48]}  exf4 {[%clk 0:02:19]} 15. N3e2 {[%clk 0:01:47]}  Kg7 {[%clk 0:02:10]} 16. c3 {[%clk 0:01:45]}  Bd6 {[%clk 0:02:08]} 17. Nf3 {[%clk 0:01:42]}  h6 {[%clk 0:02:07]} 18. g3 {[%clk 0:01:32]}  fxg3 {[%clk 0:01:59]} 19. fxg3 {[%clk 0:01:32]}  Qg6 {[%clk 0:01:59]} 20. Qxg6+ {[%clk 0:01:30]}  Kxg6 {[%clk 0:01:59]} 21. g4 {[%clk 0:01:27]}  h5 {[%clk 0:01:59]} 22. gxh5+ {[%clk 0:01:25]}  Kxh5 {[%clk 0:01:59]} 23. Kg2 {[%clk 0:01:04]}  f5 {[%clk 0:01:58]} 24. Rae1 {[%clk 0:00:55]}  fxe4 {[%clk 0:01:44]} 25. dxe4 {[%clk 0:00:55]}  Bd7 {[%clk 0:01:30]} 26. e5 {[%clk 0:00:56]}  Be7 {[%clk 0:01:26]} 27. Ng3+ {[%clk 0:00:56]}  Kg6 {[%clk 0:01:26]} 28. e6 {[%clk 0:00:55]}  Bc8 {[%clk 0:01:26]} 29. Ne5+ {[%clk 0:00:56]}  Kh6 {[%clk 0:01:12]} 30. Ng4+ {[%clk 0:00:29]}  Kg6 {[%clk 0:01:11]} 31. Nf5 {[%clk 0:00:19]}  Bf8 {[%clk 0:01:08]} 32. Ne5+ {[%clk 0:00:09]}  Kh7 {[%clk 0:01:07]} 33. Nf7 {[%clk 0:00:07]}  Kg6 {[%clk 0:00:50]} 34. Ne5+ {[%clk 0:00:06]}  Kh5 {[%clk 0:00:50]} 35. Ng4 {[%clk 0:00:06]}  Rxe6 {[%clk 0:00:49]} 36. Rxe6 {[%clk 0:00:02]}  Bxe6 {[%clk 0:00:50]} 37. Ng3+ {[%clk 0:00:03]}  Kh4 {[%clk 0:00:50]} 38. Rf6 {[%clk 0:00:02]}  Bd7 {[%clk 0:00:40]} 39. Kh2 {[%clk 0:00:01]}  Bxg4 {[%clk 0:00:37]} 40. hxg4 {[%clk 0:00:01]}  Bd6 {[%clk 0:00:37]} 41. Rf7 {[%clk 0:00:02]}  Bxg3+ {[%clk 0:00:36]} 42. Kg2 {[%clk 0:00:03]}  Kxg4 {[%clk 0:00:36]} 43. Rxc7 {[%clk 0:00:03]}  Bxc7 {[%clk 0:00:36]} 0-1


[Site "https://www.chess.com"]

[Event "Titled Tuesday Blitz September 27 Early 2022"]
[White "Flis, Pawel"]
[Black "Jovic, Stanoje"]
[WhiteFideId "1112864"]
[BlackFideId "905020"]
[WhiteElo "1735"]
[BlackElo "2238"]
[Result "0-1"]
[Round "02"]
[TimeControl "180+1"]
[Date "2022.09.27"]
[WhiteClock "0:00:16"]
[BlackClock "0:00:38"]

1. Nf3 {[%clk 0:03:00]}  Nf6 {[%clk 0:02:59]} 2. g3 {[%clk 0:03:01]}  b5 {[%clk 0:02:58]} 3. Bg2 {[%clk 0:03:01]}  Bb7 {[%clk 0:02:59]} 4. O-O {[%clk 0:03:01]}  e6 {[%clk 0:02:59]} 5. a4 {[%clk 0:03:01]}  b4 {[%clk 0:02:59]} 6. c4 {[%clk 0:03:01]}  a5 {[%clk 0:02:59]} 7. b3 {[%clk 0:03:01]}  Na6 {[%clk 0:02:58]} 8. Bb2 {[%clk 0:03:01]}  c5 {[%clk 0:02:57]} 9. d4 {[%clk 0:03:00]}  cxd4 {[%clk 0:02:56]} 10. Nxd4 {[%clk 0:03:00]}  Bxg2 {[%clk 0:02:55]} 11. Kxg2 {[%clk 0:03:01]}  Nc5 {[%clk 0:02:53]} 12. Nb5 {[%clk 0:02:59]}  Qb6 {[%clk 0:02:46]} 13. Be5 {[%clk 0:02:50]}  Rc8 {[%clk 0:02:30]} 14. Bd6 {[%clk 0:02:21]}  Rc6 {[%clk 0:02:26]} 15. Bxf8 {[%clk 0:02:18]}  Kxf8 {[%clk 0:02:26]} 16. Kg1 {[%clk 0:02:18]}  h5 {[%clk 0:02:24]} 17. h4 {[%clk 0:02:17]}  g5 {[%clk 0:02:18]} 18. hxg5 {[%clk 0:02:11]}  Nfe4 {[%clk 0:02:17]} 19. g6 {[%clk 0:02:07]}  h4 {[%clk 0:02:06]} 20. g4 {[%clk 0:01:41]}  e5 {[%clk 0:01:59]} 21. gxf7 {[%clk 0:01:30]}  Rg6 {[%clk 0:01:51]} 22. f3 {[%clk 0:01:29]}  Ng3 {[%clk 0:01:23]} 23. Rf2 {[%clk 0:01:23]}  e4 {[%clk 0:01:19]} 24. Qd4 {[%clk 0:01:16]}  Rh7 {[%clk 0:01:12]} 25. Nd2 {[%clk 0:01:11]}  Rxf7 {[%clk 0:01:02]} 26. Qh8+ {[%clk 0:00:57]}  Rg8 {[%clk 0:01:02]} 27. Qxh4 {[%clk 0:00:54]}  e3 {[%clk 0:00:58]} 28. Qh6+ {[%clk 0:00:47]}  Qxh6 {[%clk 0:00:56]} 29. Rh2 {[%clk 0:00:36]}  Nxe2+ {[%clk 0:00:51]} 30. Kh1 {[%clk 0:00:25]}  Qf6 {[%clk 0:00:46]} 31. Rxe2 {[%clk 0:00:20]}  Qxa1+ {[%clk 0:00:44]} 32. Kg2 {[%clk 0:00:19]}  exd2 {[%clk 0:00:41]} 33. Rxd2 {[%clk 0:00:20]}  Rxg4+ {[%clk 0:00:40]} 34. fxg4 {[%clk 0:00:19]}  Qf1+ {[%clk 0:00:38]} 35. Kg3 {[%clk 0:00:19]}  Ne4+ {[%clk 0:00:38]} 36. Kh4 {[%clk 0:00:16]}  Rh7# {[%clk 0:00:38]} 0-1


[Site "https://www.chess.com"]

[Event "Titled Tuesday Blitz September 27 Early 2022"]
[White "Forgacs, Attila Jr."]
[Black "Sahil, Tickoo"]
[WhiteFideId "773654"]
[BlackFideId "5019710"]
[WhiteElo "2062"]
[BlackElo "2047"]
[Result "1-0"]
[Round "02"]
[TimeControl "180+1"]
[Date "2022.09.27"]
[WhiteClock "0:00:13"]
[BlackClock "0:00:03"]

1. e4 {[%clk 0:03:00]}  c5 {[%clk 0:02:59]} 2. Nf3 {[%clk 0:03:00]}  d6 {[%clk 0:03:00]} 3. d4 {[%clk 0:03:01]}  cxd4 {[%clk 0:03:00]} 4. Nxd4 {[%clk 0:03:01]}  Nf6 {[%clk 0:03:00]} 5. Nc3 {[%clk 0:03:02]}  a6 {[%clk 0:03:00]} 6. f3 {[%clk 0:03:01]}  e5 {[%clk 0:03:00]} 7. Nb3 {[%clk 0:03:01]}  Be7 {[%clk 0:03:00]} 8. Be3 {[%clk 0:03:02]}  O-O {[%clk 0:03:00]} 9. Qd2 {[%clk 0:03:00]}  Be6 {[%clk 0:03:01]} 10. O-O-O {[%clk 0:03:00]}  a5 {[%clk 0:03:01]} 11. a4 {[%clk 0:02:58]}  Na6 {[%clk 0:03:01]} 12. Bb5 {[%clk 0:02:57]}  Nc7 {[%clk 0:02:59]} 13. Kb1 {[%clk 0:02:55]}  Nxb5 {[%clk 0:02:58]} 14. Nxb5 {[%clk 0:02:53]}  d5 {[%clk 0:02:59]} 15. exd5 {[%clk 0:02:50]}  Nxd5 {[%clk 0:02:59]} 16. g4 {[%clk 0:02:47]}  Qc8 {[%clk 0:02:42]} 17. Qf2 {[%clk 0:02:28]}  Qc4 {[%clk 0:02:37]} 18. Bc5 {[%clk 0:02:13]}  Bxc5 {[%clk 0:02:22]} 19. Qxc5 {[%clk 0:01:53]}  Qxa4 {[%clk 0:02:19]} 20. Rxd5 {[%clk 0:01:46]}  Rac8 {[%clk 0:01:54]} 21. Qd6 {[%clk 0:01:32]}  Qc4 {[%clk 0:01:41]} 22. Nc3 {[%clk 0:01:26]}  Rc6 {[%clk 0:01:19]} 23. Qxe5 {[%clk 0:01:18]}  Bxd5 {[%clk 0:01:08]} 24. Qxd5 {[%clk 0:01:18]}  Qb4 {[%clk 0:01:02]} 25. Qxa5 {[%clk 0:01:02]}  Qe7 {[%clk 0:00:58]} 26. Rd1 {[%clk 0:00:58]}  h6 {[%clk 0:00:56]} 27. Qf5 {[%clk 0:00:54]}  Qh4 {[%clk 0:00:40]} 28. f4 {[%clk 0:00:31]}  Qxh2 {[%clk 0:00:39]} 29. Nd5 {[%clk 0:00:28]}  Re8 {[%clk 0:00:28]} 30. Ne7+ {[%clk 0:00:25]}  Kf8 {[%clk 0:00:21]} 31. Nxc6 {[%clk 0:00:26]}  bxc6 {[%clk 0:00:21]} 32. g5 {[%clk 0:00:22]}  hxg5 {[%clk 0:00:20]} 33. fxg5 {[%clk 0:00:22]}  Kg8 {[%clk 0:00:16]} 34. g6 {[%clk 0:00:22]}  fxg6 {[%clk 0:00:11]} 35. Qxg6 {[%clk 0:00:20]}  Qe2 {[%clk 0:00:09]} 36. Rg1 {[%clk 0:00:17]}  Re7 {[%clk 0:00:08]} 37. Nd4 {[%clk 0:00:15]}  Qe5 {[%clk 0:00:04]} 38. Nf5 {[%clk 0:00:14]}  Rf7 {[%clk 0:00:03]} 39. Nh6+ {[%clk 0:00:14]}  Kh8 {[%clk 0:00:03]} 40. Nxf7+ {[%clk 0:00:13]} 1-0


[Site "https://www.chess.com"]

[Event "Titled Tuesday Blitz September 27 Early 2022"]
[White "Gabrielian, Artur"]
[Black "Seemann, Jakub"]
[WhiteFideId "4131002"]
[BlackFideId "21874697"]
[WhiteElo "2467"]
[BlackElo "2148"]
[Result "1-0"]
[Round "02"]
[TimeControl "180+1"]
[Date "2022.09.27"]
[WhiteClock "0:01:09"]
[BlackClock "0:00:13"]

1. e4 {[%clk 0:03:00]}  e6 {[%clk 0:02:58]} 2. d4 {[%clk 0:03:00]}  d5 {[%clk 0:02:59]} 3. Nc3 {[%clk 0:03:00]}  dxe4 {[%clk 0:02:59]} 4. Nxe4 {[%clk 0:03:00]}  Nd7 {[%clk 0:03:00]} 5. Nf3 {[%clk 0:03:00]}  Ngf6 {[%clk 0:03:01]} 6. Bg5 {[%clk 0:03:00]}  Be7 {[%clk 0:02:57]} 7. Nxf6+ {[%clk 0:02:57]}  Nxf6 {[%clk 0:02:57]} 8. Bd3 {[%clk 0:02:51]}  c5 {[%clk 0:02:56]} 9. Qe2 {[%clk 0:02:49]}  O-O {[%clk 0:02:53]} 10. O-O-O {[%clk 0:02:48]}  Qc7 {[%clk 0:02:52]} 11. h4 {[%clk 0:02:34]}  b6 {[%clk 0:02:51]} 12. Rh3 {[%clk 0:02:33]}  Bb7 {[%clk 0:02:45]} 13. Rg3 {[%clk 0:02:31]}  Nd5 {[%clk 0:02:43]} 14. Bxe7 {[%clk 0:02:28]}  Qxe7 {[%clk 0:02:40]} 15. dxc5 {[%clk 0:02:20]}  Nf4 {[%clk 0:02:28]} 16. Qe5 {[%clk 0:02:14]}  Nxd3+ {[%clk 0:02:26]} 17. Rxd3 {[%clk 0:02:14]}  f6 {[%clk 0:02:08]} 18. Qd6 {[%clk 0:02:10]}  Qxd6 {[%clk 0:02:07]} 19. Rxd6 {[%clk 0:02:05]}  bxc5 {[%clk 0:01:30]} 20. Rxe6 {[%clk 0:02:03]}  Rfe8 {[%clk 0:01:30]} 21. Rxf6 {[%clk 0:01:54]}  Rad8 {[%clk 0:01:11]} 22. b3 {[%clk 0:01:54]}  Re2 {[%clk 0:01:09]} 23. Rf5 {[%clk 0:01:47]}  Rxf2 {[%clk 0:00:40]} 24. Rxc5 {[%clk 0:01:44]}  Bxf3 {[%clk 0:00:32]} 25. gxf3 {[%clk 0:01:42]}  Rdd2 {[%clk 0:00:19]} 26. Rc8+ {[%clk 0:01:30]}  Kf7 {[%clk 0:00:20]} 27. Rc7+ {[%clk 0:01:31]}  Kf6 {[%clk 0:00:20]} 28. Rgxg7 {[%clk 0:01:31]}  Rde2 {[%clk 0:00:17]} 29. Rxh7 {[%clk 0:01:29]}  Rh2 {[%clk 0:00:13]} 30. Rc6+ {[%clk 0:01:27]}  Kf5 {[%clk 0:00:09]} 31. Rf7+ {[%clk 0:01:17]}  Ke5 {[%clk 0:00:10]} 32. Re7+ {[%clk 0:01:17]}  Kd4 {[%clk 0:00:10]} 33. Rxe2 {[%clk 0:01:17]}  Rxe2 {[%clk 0:00:11]} 34. Rc4+ {[%clk 0:01:15]}  Kd5 {[%clk 0:00:11]} 35. Ra4 {[%clk 0:01:12]}  Rh2 {[%clk 0:00:12]} 36. Rxa7 {[%clk 0:01:10]}  Kd4 {[%clk 0:00:13]} 37. Kb2 {[%clk 0:01:09]} 1-0


[Site "https://www.chess.com"]

[Event "Titled Tuesday Blitz September 27 Early 2022"]
[White "Gu, Xiaobing"]
[Black "Cruz, Jonathan"]
[WhiteFideId "8602611"]
[BlackFideId "3802124"]
[WhiteElo "2174"]
[BlackElo "2406"]
[Result "0-1"]
[Round "02"]
[TimeControl "180+1"]
[Date "2022.09.27"]
[WhiteClock "0:00:01"]
[BlackClock "0:00:07"]

1. e4 {[%clk 0:02:56]}  e5 {[%clk 0:02:59]} 2. Nc3 {[%clk 0:02:51]}  Nf6 {[%clk 0:02:58]} 3. g3 {[%clk 0:02:50]}  c6 {[%clk 0:02:53]} 4. Bg2 {[%clk 0:02:47]}  d5 {[%clk 0:02:53]} 5. d3 {[%clk 0:02:47]}  dxe4 {[%clk 0:02:42]} 6. Nxe4 {[%clk 0:02:28]}  Nxe4 {[%clk 0:02:38]} 7. Bxe4 {[%clk 0:02:28]}  Be7 {[%clk 0:02:34]} 8. Bg2 {[%clk 0:02:26]}  O-O {[%clk 0:02:33]} 9. Nf3 {[%clk 0:02:27]}  Bd6 {[%clk 0:02:15]} 10. O-O {[%clk 0:02:14]}  c5 {[%clk 0:02:15]} 11. Re1 {[%clk 0:01:54]}  Nc6 {[%clk 0:01:51]} 12. Ng5 {[%clk 0:01:52]}  h6 {[%clk 0:01:42]} 13. Ne4 {[%clk 0:01:44]}  Be7 {[%clk 0:01:42]} 14. Qh5 {[%clk 0:01:42]}  Qe8 {[%clk 0:01:23]} 15. Bxh6 {[%clk 0:01:32]}  f5 {[%clk 0:01:23]} 16. Qxe8 {[%clk 0:00:51]}  Rxe8 {[%clk 0:01:22]} 17. Bxg7 {[%clk 0:00:48]}  Kxg7 {[%clk 0:01:13]} 18. Nc3 {[%clk 0:00:48]}  Bf6 {[%clk 0:00:53]} 19. Nd5 {[%clk 0:00:44]}  Rd8 {[%clk 0:00:53]} 20. c3 {[%clk 0:00:40]}  Rb8 {[%clk 0:00:50]} 21. Re2 {[%clk 0:00:38]}  Be6 {[%clk 0:00:49]} 22. Nxf6 {[%clk 0:00:29]}  Kxf6 {[%clk 0:00:49]} 23. Rae1 {[%clk 0:00:28]}  Bd5 {[%clk 0:00:32]} 24. Bh3 {[%clk 0:00:20]}  Bxa2 {[%clk 0:00:18]} 25. Re3 {[%clk 0:00:17]}  Bd5 {[%clk 0:00:18]} 26. f4 {[%clk 0:00:14]}  exf4 {[%clk 0:00:14]} 27. gxf4 {[%clk 0:00:12]}  Rg8+ {[%clk 0:00:13]} 28. Kf2 {[%clk 0:00:12]}  Rh8 {[%clk 0:00:13]} 29. Rg3 {[%clk 0:00:11]}  Rh6 {[%clk 0:00:12]} 30. Reg1 {[%clk 0:00:10]}  Rbh8 {[%clk 0:00:12]} 31. Bxf5 {[%clk 0:00:04]}  Rxh2+ {[%clk 0:00:12]} 32. Ke1 {[%clk 0:00:02]}  Re8+ {[%clk 0:00:10]} 33. Be4 {[%clk 0:00:03]}  Bxe4 {[%clk 0:00:10]} 34. dxe4 {[%clk 0:00:03]}  Rxe4+ {[%clk 0:00:11]} 35. Kd1 {[%clk 0:00:04]}  Ree2 {[%clk 0:00:10]} 36. Rg6+ {[%clk 0:00:03]}  Kf5 {[%clk 0:00:10]} 37. R1g5+ {[%clk 0:00:02]}  Ke4 {[%clk 0:00:07]} 38. Re6+ {[%clk 0:00:01]}  Kf3 {[%clk 0:00:07]} 0-1


[Site "https://www.chess.com"]